fUST/lending_fUST_20240918
["ID","MTS","AMOUNT","RATE_DAILY","PERIOD"]
[338437265,1726638643438,-500.0,0.00019178,2]
[338437266,1726638643447,-500.0,0.00019178,2]
[338437267,1726638643456,-664.22,0.00019178,2]
[338437268,1726638643466,-500.0,0.00019178,2]
[338437269,1726638643475,-500.0,0.00019178,2]
[338437270,1726638643486,-689.54,0.00019178,2]
[338437271,1726638643496,-500.0,0.00019178,2]
[338437272,1726638643506,-500.0,0.00019178,2]
[338437273,1726638643515,-500.0,0.00019178,2]
[338437274,1726638643525,-501.16309341,0.00019178,2]
[338437276,1726638643535,-500.0,0.00019178,2]
[338437277,1726638643545,-969.3,0.00019178,2]
[338437278,1726638643555,-1645.83,0.00019178,2]
[338437279,1726638643567,-2641.74,0.00019178,2]
[338437280,1726638643578,-500.0,0.00019178,2]
[338437281,1726638643589,-500.0,0.00019178,2]
[338437282,1726638643598,-500.0,0.00019178,2]
[338437283,1726638643607,-598.82,0.00019178,2]
[338437284,1726638643617,-1534.35,0.00019178,2]
[338437285,1726638643628,-2445.49,0.00019178,2]
[338437286,1726638643640,-500.0,0.00019178,2]
[338437287,1726638643651,-500.0,0.00019178,2]
[338437288,1726638643661,-699.61,0.00019178,2]
[338437289,1726638643672,-500.0,0.00019178,2]
[338437290,1726638643683,-1168.07,0.00019178,2]
[338437291,1726638643695,-500.0,0.00019178,2]
[338437292,1726638643706,-500.0,0.00019178,2]
[338437293,1726638643717,-500.0,0.00019178,2]
[338437294,1726638643728,-500.0,0.00019178,2]
[338437295,1726638643739,-500.0,0.00019178,2]
[338437296,1726638643750,-631.95,0.00019178,2]
[338437297,1726638643763,-500.0,0.00019178,2]
[338437298,1726638643773,-2430.11,0.00019178,2]
[338437299,1726638643785,-500.0,0.00019178,2]
[338437300,1726638643798,-1400.25,0.00019178,2]
[338437301,1726638643809,-500.0,0.00019178,2]
[338437302,1726638643820,-1830.33,0.00019178,2]
[338437303,1726638643830,-500.0,0.00019178,2]
[338437304,1726638643840,-500.0,0.00019178,2]
[338437305,1726638643851,-1441.31,0.00019178,2]
[338437306,1726638643862,-500.0,0.00019178,2]
[338437307,1726638643874,-500.0,0.00019178,2]
[338437308,1726638643885,-1753.96,0.00019178,2]
[338437309,1726638643895,-500.0,0.00019178,2]
[338437310,1726638643906,-151.0,0.00019178,2]
[338437311,1726638643916,-2259.01,0.00019178,2]
[338437312,1726638643935,-500.0,0.00019178,2]
[338437313,1726638643946,-500.0,0.00019178,2]
[338437314,1726638643956,-604.25,0.00019178,2]
[338437315,1726638643965,-500.0,0.00019178,2]
[338437316,1726638643975,-500.0,0.00019178,2]
[338437317,1726638643985,-500.0,0.00019178,2]
[338437318,1726638643996,-500.0,0.00019178,2]
[338437319,1726638644006,-500.0,0.00019178,2]
[338437320,1726638644016,-500.0,0.00019178,2]
[338437321,1726638644027,-500.0,0.00019178,2]
[338437322,1726638644039,-500.0,0.00019178,2]
[338437323,1726638644050,-500.0,0.00019178,2]
[338437324,1726638644060,-500.0,0.00019178,2]
[338437325,1726638644069,-1202.17,0.00019178,2]
[338437326,1726638644079,-500.0,0.00019178,2]
[338437327,1726638644091,-500.0,0.00019178,2]
[338437328,1726638644101,-903.73,0.00019178,2]
[338437329,1726638644112,-463.91101565,0.00019178,2]
[338437330,1726638644123,-500.0,0.00019178,2]
[338437331,1726638644133,-500.0,0.00019178,2]
[338437332,1726638644143,-500.0,0.00019178,2]
[338437333,1726638644154,-500.0,0.00019178,2]
[338437334,1726638644163,-500.0,0.00019178,2]
[338437335,1726638644177,-500.0,0.00019178,2]
[338437336,1726638644187,-1300.18,0.00019178,2]
[338437337,1726638644196,-500.0,0.00019178,2]
[338437338,1726638644205,-500.0,0.00019178,2]
[338437339,1726638644215,-391.66560742,0.00019178,2]
[338437340,1726638644223,-1084.07,0.00019178,2]
[338437341,1726638644233,-805.17,0.00019178,2]
[338437342,1726638644245,-500.0,0.00019178,2]
[338437343,1726638644255,-2517.23,0.00019178,2]
[338437344,1726638644265,-182.84712699,0.00019178,2]
[338437345,1726638644275,-500.0,0.00019178,2]
[338437346,1726638644285,-500.0,0.00019178,2]
[338437347,1726638644296,-500.0,0.00019178,2]
[338437348,1726638644307,-500.0,0.00019178,2]
[338437349,1726638644318,-2331.23,0.00019178,2]
[338437350,1726638644329,-500.0,0.00019178,2]
[338437351,1726638644340,-1782.56,0.00019178,2]
[338437352,1726638644351,-500.0,0.00019178,2]
[338437353,1726638644363,-3535.4,0.00019178,2]
[338437354,1726638644375,-500.0,0.00019178,2]
[338437355,1726638644387,-922.64,0.00019178,2]
[338437356,1726638644398,-500.0,0.00019178,2]
[338437357,1726638644408,-500.0,0.00019178,2]
[338437358,1726638644419,-500.0,0.00019178,2]
[338437359,1726638644431,-500.0,0.00019178,2]
[338437360,1726638644440,-2084.84,0.00019178,2]
[338437361,1726638644449,-758.31,0.00019178,2]
[338437362,1726638644460,-435.42923858,0.00019178,2]
[338437363,1726638644471,-1783.01,0.00019178,2]
[338437364,1726638644481,-500.0,0.00019178,2]
[338437365,1726638644491,-500.0,0.00019178,2]
[338437366,1726638644502,-853.76,0.00019178,2]
[338437367,1726638644514,-1048.48,0.00019178,2]
[338437368,1726638644525,-734.12,0.00019178,2]
[338437369,1726638644536,-500.0,0.00019178,2]
[338437370,1726638644548,-500.0,0.00019178,2]
[338437371,1726638644559,-1581.35,0.00019178,2]
[338437372,1726638644570,-500.0,0.00019178,2]
[338437373,1726638644581,-500.0,0.00019178,2]
[338437374,1726638644592,-500.0,0.00019178,2]
[338437375,1726638644603,-500.0,0.00019178,2]
[338437376,1726638644613,-1177.59,0.00019178,2]
[338437377,1726638644625,-500.0,0.00019178,2]
[338437378,1726638644635,-1466.0,0.00019178,2]
[338437379,1726638644647,-1738.66,0.00019178,2]
[338437380,1726638644661,-552.58,0.00019178,2]
[338437381,1726638644671,-500.0,0.00019178,2]
[338437382,1726638644682,-210.2631478,0.00019178,2]
[338437383,1726638644693,-500.0,0.00019178,2]
[338437384,1726638644704,-500.0,0.00019178,2]
[338437385,1726638644715,-825.1,0.00019178,2]
[338437386,1726638644725,-500.0,0.00019178,2]
[338437387,1726638644736,-500.0,0.00019178,2]
[338437388,1726638644746,-500.0,0.00019178,2]
[338437389,1726638644757,-500.0,0.00019178,2]
[338437390,1726638644768,-3280.11,0.00019178,2]
[338437391,1726638644781,-500.0,0.00019178,2]
[338437392,1726638644792,-500.0,0.00019178,2]
[338437393,1726638644802,-500.0,0.00019178,2]
[338437394,1726638644813,-500.0,0.00019178,2]
[338437395,1726638644826,-500.0,0.00019178,2]
[338437396,1726638644835,-500.0,0.00019178,2]
[338437397,1726638644848,-500.0,0.00019178,2]
[338437398,1726638644859,-1881.49,0.00019178,2]
[338437399,1726638644871,-500.0,0.00019178,2]
[338437400,1726638644882,-500.0,0.00019178,2]
[338437401,1726638644895,-715.42,0.00019178,2]
[338437402,1726638644906,-500.98752862,0.00019178,2]
[338437403,1726638644917,-500.0,0.00019178,2]
[338437404,1726638644926,-500.0,0.00019178,2]
[338437405,1726638644936,-500.0,0.00019178,2]
[338437406,1726638644949,-939.24,0.00019178,2]
[338437407,1726638644960,-655.02,0.00019178,2]
[338437408,1726638644972,-1230.4,0.00019178,2]
[338437409,1726638644983,-500.0,0.00019178,2]
[338437410,1726638644994,-1683.57,0.00019178,2]
[338437411,1726638645006,-562.52,0.00019178,2]
[338437412,1726638645016,-1312.16,0.00019178,2]
[338437413,1726638645027,-500.0,0.00019178,2]
[338437414,1726638645038,-998.57,0.00019178,2]
[338437415,1726638645047,-500.0,0.00019178,2]
[338437416,1726638645058,-500.0,0.00019178,2]
[338437417,1726638645067,-500.0,0.00019178,2]
[338437418,1726638645077,-816.31,0.00019178,2]
[338437419,1726638645086,-500.0,0.00019178,2]
[338437420,1726638645095,-386.7671336,0.00019178,2]
[338437421,1726638645106,-2381.06,0.00019178,2]
[338437422,1726638645115,-339.63620813,0.00019178,2]
[338437423,1726638645124,-500.0,0.00019178,2]
[338437424,1726638645134,-500.0,0.00019178,2]
[338437425,1726638645143,-500.0,0.00019178,2]
[338437426,1726638645153,-500.0,0.00019178,2]
[338437427,1726638645162,-772.98,0.00019178,2]
[338437428,1726638645171,-634.8,0.00019178,2]
[338437429,1726638645181,-1236.45,0.00019178,2]
[338437430,1726638645190,-720.21,0.00019178,2]
[338437431,1726638645199,-151.0,0.00019178,2]
[338437432,1726638645209,-1016.39,0.00019178,2]
[338437433,1726638645218,-221.740558,0.00019178,2]
[338437434,1726638645228,-154.742121,0.00019178,2]
[338437435,1726638645238,-1254.62,0.00019178,2]
[338437436,1726638645247,-500.0,0.00019178,2]
[338437437,1726638645256,-538.05000947,0.00019178,2]
[338437438,1726638645266,-500.0,0.00019178,2]
[338437439,1726638645275,-500.0,0.00019178,2]
[338437440,1726638645284,-221.740558,0.00019178,2]
[338437441,1726638645294,-779.26,0.00019178,2]
[338437442,1726638645304,-1315.72,0.00019178,2]
[338437443,1726638645313,-500.0,0.00019178,2]
[338437444,1726638645322,-500.0,0.00019178,2]
[338437445,1726638645469,-500.0,0.00019178,2]
[338437446,1726638645500,-262.88074097,0.00019178,2]
[338437447,1726638645510,-165.687022,0.00019178,2]
[338437448,1726638645520,-532.59370573,0.00019178,2]
[338437449,1726638645530,-500.0,0.00019178,2]
[338437450,1726638645539,-151.0,0.00019178,2]
[338437452,1726638645548,-500.0,0.00019178,2]
[338437454,1726638645558,-500.0,0.00019178,2]
[338437456,1726638645567,-500.0,0.00019178,2]
[338437458,1726638645577,-500.0,0.00019178,2]
[338437460,1726638645586,-2217.64,0.00019178,2]
[338437462,1726638645596,-523.24,0.00019178,2]
[338437464,1726638645605,-607.19,0.00019178,2]
[338437466,1726638645615,-1325.82,0.00019178,2]
[338437468,1726638645625,-1955.05,0.00019178,2]
[338437470,1726638645634,-500.0,0.00019178,2]
[338437472,1726638645644,-500.0,0.00019178,2]
[338437474,1726638645653,-500.0,0.00019178,2]
[338437476,1726638645663,-522.11,0.00019178,2]
[338437478,1726638645673,-500.0,0.00019178,2]
[338437480,1726638645683,-735.43,0.00019178,2]
[338437482,1726638645692,-559.61,0.00019178,2]
[338437485,1726638645702,-667.04,0.00019178,2]
[338437488,1726638645712,-500.0,0.00019178,2]
[338437489,1726638645722,-500.0,0.00019178,2]
[338437491,1726638645731,-1000.85,0.00019178,2]
[338437493,1726638645741,-685.6,0.00019178,2]
[338437494,1726638645751,-1073.75,0.00019178,2]
[338437496,1726638645761,-1199.35,0.00019178,2]
[338437498,1726638645773,-2481.57,0.00019178,2]
[338437499,1726638645783,-500.0,0.00019178,2]
[338437501,1726638645793,-2479.98,0.00019178,2]
[338437503,1726638645804,-500.0,0.00019178,2]
[338437505,1726638645815,-1364.46,0.00019178,2]
[338437507,1726638645825,-500.0,0.00019178,2]
[338437509,1726638645836,-500.0,0.00019178,2]
[338437511,1726638645845,-500.0,0.00019178,2]
[338437512,1726638645855,-502.83589246,0.00019178,2]
[338437513,1726638645866,-500.0,0.00019178,2]
[338437514,1726638645876,-500.0,0.00019178,2]
[338437515,1726638645886,-500.0,0.00019178,2]
[338437516,1726638645896,-294.91661263,0.00019178,2]
[338437518,1726638645907,-500.0,0.00019178,2]
[338437520,1726638645918,-1223.12,0.00019178,2]
[338437522,1726638645929,-2459.19,0.00019178,2]
[338437524,1726638645939,-838.57,0.00019178,2]
[338437526,1726638645951,-500.0,0.00019178,2]
[338437527,1726638645961,-500.0,0.00019178,2]
[338437528,1726638645971,-500.0,0.00019178,2]
[338437529,1726638645980,-500.0,0.00019178,2]
[338437530,1726638645991,-309.26441141,0.00019178,2]
[338437531,1726638646002,-1104.16,0.00019178,2]
[338437532,1726638646019,-500.0,0.00019178,2]
[338437533,1726638646030,-500.0,0.00019178,2]
[338437534,1726638646040,-525.69,0.00019178,2]
[338437535,1726638646051,-500.0,0.00019178,2]
[338437536,1726638646061,-500.0,0.00019178,2]
[338437537,1726638646072,-501.69517399,0.00019178,2]
[338437538,1726638646083,-2776.44,0.00019178,2]
[338437539,1726638646093,-1686.73,0.00019178,2]
[338437541,1726638646104,-500.0,0.00019178,2]
[338437542,1726638646113,-500.0,0.00019178,2]
[338437543,1726638646124,-1109.6,0.00019178,2]
[338437544,1726638646135,-500.0,0.00019178,2]
[338437545,1726638646146,-533.87,0.00019178,2]
[338437546,1726638646156,-1240.52,0.00019178,2]
[338437547,1726638646167,-2086.67,0.00019178,2]
[338437548,1726638646177,-1802.31,0.00019178,2]
[338437549,1726638646186,-500.0,0.00019178,2]
[338437550,1726638646196,-154.795383,0.00019178,2]
[338437551,1726638646207,-151.0,0.00019178,2]
[338437552,1726638646218,-500.0,0.00019178,2]
[338437553,1726638646229,-500.0,0.00019178,2]
[338437554,1726638646238,-2241.26,0.00019178,2]
[338437555,1726638646249,-500.0,0.00019178,2]
[338437556,1726638646259,-500.0,0.00019178,2]
[338437557,1726638646270,-500.0,0.00019178,2]
[338437558,1726638646279,-500.0,0.00019178,2]
[338437559,1726638646290,-1091.36,0.00019178,2]
[338437560,1726638646301,-601.12331123,0.00019178,2]
[338437561,1726638646312,-500.0,0.00019178,2]
[338437562,1726638646325,-500.0,0.00019178,2]
[338437563,1726638646335,-151.0,0.00019178,2]
[338437564,1726638646345,-500.0,0.00019178,2]
[338437565,1726638646356,-514.33,0.00019178,2]
[338437566,1726638646366,-151.0,0.00019178,2]
[338437567,1726638646376,-500.0,0.00019178,2]
[338437568,1726638646387,-500.0,0.00019178,2]
[338437569,1726638646398,-500.0,0.00019178,2]
[338437570,1726638646410,-500.0,0.00019178,2]
[338437571,1726638646421,-500.0,0.00019178,2]
[338437572,1726638646431,-500.0,0.00019178,2]
[338437573,1726638646441,-500.0,0.00019178,2]
[338437574,1726638646451,-500.0,0.00019178,2]
[338437575,1726638646462,-500.0,0.00019178,2]
[338437576,1726638646473,-500.0,0.00019178,2]
[338437577,1726638646484,-500.0,0.00019178,2]
[338437578,1726638646495,-500.0,0.00019178,2]
[338437579,1726638646504,-500.0,0.00019178,2]
[338437580,1726638646515,-500.0,0.00019178,2]
[338437581,1726638646525,-500.0,0.00019178,2]
[338437582,1726638646537,-500.0,0.00019178,2]
[338437583,1726638646547,-500.0,0.00019178,2]
[338437584,1726638646557,-485.25618046,0.00019178,2]
[338437585,1726638646569,-500.0,0.00019178,2]
[338437586,1726638646578,-2299.35,0.00019178,2]
[338437587,1726638646588,-1057.98,0.00019178,2]
[338437588,1726638646599,-500.0,0.00019178,2]
[338437589,1726638646615,-2316.71,0.00019178,2]
[338437590,1726638646627,-853.89,0.00019178,2]
[338437591,1726638646638,-631.13,0.00019178,2]
[338437592,1726638646650,-500.0,0.00019178,2]
[338437593,1726638646663,-500.0,0.00019178,2]
[338437594,1726638646673,-641.45,0.00019178,2]
[338437595,1726638646683,-1776.55,0.00019178,2]
[338437596,1726638646694,-500.0,0.00019178,2]
[338437597,1726638646704,-500.0,0.00019178,2]
[338437598,1726638646715,-4321.59,0.00019178,2]
[338437599,1726638646725,-742.81,0.00019178,2]
[338437600,1726638646737,-500.0,0.00019178,2]
[338437601,1726638646747,-500.0,0.00019178,2]
[338437602,1726638646758,-1000.0,0.00019178,2]
[338437603,1726638646772,-524.98,0.00019178,2]
[338437604,1726638646786,-513.2510045,0.00019178,2]
[338437605,1726638646797,-500.0,0.00019178,2]
[338437606,1726638646808,-500.0,0.00019178,2]
[338437607,1726638646821,-500.0,0.00019178,2]
[338437608,1726638646832,-500.0,0.00019178,2]
[338437609,1726638646846,-500.0,0.00019178,2]
[338437610,1726638646855,-500.0,0.00019178,2]
[338437611,1726638646866,-940.47,0.00019178,2]
[338437612,1726638646877,-155.996601,0.00019178,2]
[338437613,1726638646889,-500.0,0.00019178,2]
[338437614,1726638646898,-560.7,0.00019178,2]
[338437615,1726638646909,-956.21,0.00019178,2]
[338437616,1726638646919,-2354.33,0.00019178,2]
[338437617,1726638646931,-501.37750576,0.00019178,2]
[338437618,1726638646943,-500.0,0.00019178,2]
[338437619,1726638646956,-1276.55,0.00019178,2]
[338437620,1726638646966,-1781.13,0.00019178,2]
[338437621,1726638646975,-1635.02,0.00019178,2]
[338437622,1726638646986,-500.0,0.00019178,2]
[338437623,1726638646996,-939.51,0.00019178,2]
[338437624,1726638647005,-500.0,0.00019178,2]
[338437625,1726638647015,-500.0,0.00019178,2]
[338437626,1726638647024,-500.0,0.00019178,2]
[338437627,1726638647034,-573.29967654,0.00019178,2]
[338437628,1726638647044,-500.0,0.00019178,2]
[338437629,1726638647053,-500.0,0.00019178,2]
[338437630,1726638647063,-500.0,0.00019178,2]
[338437631,1726638647072,-500.0,0.00019178,2]
[338437632,1726638647082,-1142.18,0.00019178,2]
[338437633,1726638647091,-500.0,0.00019178,2]
[338437634,1726638647100,-500.0,0.00019178,2]
[338437635,1726638647110,-500.0,0.00019178,2]
[338437636,1726638647119,-500.0,0.00019178,2]
[338437637,1726638647129,-500.0,0.00019178,2]
[338437638,1726638647138,-500.0,0.00019178,2]
[338437639,1726638647148,-850.72,0.00019178,2]
[338437640,1726638647157,-500.0,0.00019178,2]
[338437641,1726638647167,-1922.91,0.00019178,2]
[338437642,1726638647176,-500.0,0.00019178,2]
[338437643,1726638647187,-1922.91,0.00019178,2]
[338437644,1726638647196,-1922.91,0.00019178,2]
[338437645,1726638647205,-1922.91,0.00019178,2]
[338437646,1726638647215,-151.0,0.00019178,2]
[338437647,1726638647224,-1922.91,0.00019178,2]
[338437648,1726638647235,-500.0,0.00019178,2]
[338437649,1726638647245,-1922.91,0.00019178,2]
[338437650,1726638647255,-151.0,0.00019178,2]
[338437651,1726638647266,-1922.91,0.00019178,2]
[338437652,1726638647275,-1922.91,0.00019178,2]
[338437653,1726638647285,-1922.91,0.00019178,2]
[338437654,1726638647294,-1922.91,0.00019178,2]
[338437655,1726638647304,-1922.91,0.00019178,2]
[338437656,1726638647314,-1922.91,0.00019178,2]
[338437657,1726638647323,-500.0,0.00019178,2]
[338437658,1726638647334,-500.0,0.00019178,2]
[338437659,1726638647343,-1922.91,0.00019178,2]
[338437660,1726638647353,-1922.91,0.00019178,2]
[338437661,1726638647363,-1922.91,0.00019178,2]
[338437662,1726638647373,-1922.91,0.00019178,2]
[338437663,1726638647383,-1922.91,0.00019178,2]
[338437664,1726638647393,-500.0,0.00019178,2]
[338437665,1726638647403,-1922.91,0.00019178,2]
[338437666,1726638647413,-1922.91,0.00019178,2]
[338437667,1726638647424,-1922.91,0.00019178,2]
[338437668,1726638647439,-1922.91,0.00019178,2]
[338437669,1726638647449,-1922.91,0.00019178,2]
[338437670,1726638647458,-1922.91,0.00019178,2]
[338437671,1726638647468,-500.0,0.00019178,2]
[338437672,1726638647478,-1982.38,0.00019178,2]
[338437673,1726638647488,-1923.09171115,0.00019178,2]
[338437674,1726638647497,-1259.46,0.00019178,2]
[338437675,1726638647507,-500.0,0.00019178,2]
[338437676,1726638647528,-2547.64,0.00019178,2]
[338437677,1726638647539,-151.0,0.00019178,2]
[338437678,1726638647549,-151.0,0.00019178,2]
[338437679,1726638647559,-151.0,0.00019178,2]
[338437680,1726638647569,-1937.67,0.00019178,2]
[338437681,1726638647580,-500.0,0.00019178,2]
[338437682,1726638647590,-2900.65,0.00019178,2]
[338437683,1726638647600,-500.0,0.00019178,2]
[338437684,1726638647610,-2026.74,0.00019178,2]
[338437685,1726638647620,-1258.19,0.00019178,2]
[338437686,1726638647630,-980.84,0.00019178,2]
[338437687,1726638647640,-151.0,0.00019178,2]
[338437688,1726638647650,-151.0,0.00019178,2]
[338437689,1726638647660,-500.0,0.00019178,2]
[338437690,1726638647670,-500.0,0.00019178,2]
[338437691,1726638647685,-305.75426167,0.00019178,2]
[338437692,1726638647695,-500.0,0.00019178,2]
[338437693,1726638647704,-151.0,0.00019178,2]
[338437694,1726638647714,-151.0,0.00019178,2]
[338437695,1726638647725,-500.0,0.00019178,2]
[338437696,1726638647734,-500.0,0.00019178,2]
[338437697,1726638647744,-517.87,0.00019178,2]
[338437698,1726638647754,-569.92,0.00019178,2]
[338437699,1726638647764,-500.0,0.00019178,2]
[338437700,1726638647777,-696.62,0.00019178,2]
[338437701,1726638647787,-2103.02,0.00019178,2]
[338437702,1726638647796,-151.0,0.00019178,2]
[338437703,1726638647806,-500.0,0.00019178,2]
[338437704,1726638647816,-999.12,0.00019178,2]
[338437705,1726638647826,-500.0,0.00019178,2]
[338437706,1726638647836,-500.0,0.00019178,2]
[338437707,1726638647845,-891.22,0.00019178,2]
[338437708,1726638647855,-500.0,0.00019178,2]
[338437709,1726638647865,-1876.48,0.00019178,2]
[338437710,1726638647875,-500.0,0.00019178,2]
[338437711,1726638647885,-151.0,0.00019178,2]
[338437712,1726638647895,-151.0,0.00019178,2]
[338437713,1726638647905,-500.0,0.00019178,2]
[338437714,1726638647916,-500.0,0.00019178,2]
[338437715,1726638647926,-2203.27,0.00019178,2]
[338437716,1726638647936,-794.54,0.00019178,2]
[338437717,1726638647946,-508.28852983,0.00019178,2]
[338437718,1726638647956,-973.84,0.00019178,2]
[338437719,1726638647966,-500.0,0.00019178,2]
[338437720,1726638647975,-500.0,0.00019178,2]
[338437721,1726638647985,-10328.85,0.00019178,2]
[338437722,1726638647995,-1583.15,0.00019178,2]
[338437723,1726638648005,-500.0,0.00019178,2]
[338437724,1726638648014,-2029.26,0.00019178,2]
[338437725,1726638648024,-500.0,0.00019178,2]
[338437726,1726638648034,-500.0,0.00019178,2]
[338437727,1726638648043,-500.0,0.00019178,2]
[338437728,1726638648053,-500.0,0.00019178,2]
[338437729,1726638648064,-500.0,0.00019178,2]
[338437730,1726638648073,-543.62,0.00019178,2]
[338437731,1726638648083,-500.0,0.00019178,2]
[338437732,1726638648093,-500.0,0.00019178,2]
[338437733,1726638648103,-500.0,0.00019178,2]
[338437734,1726638648113,-863.42,0.00019178,2]
[338437735,1726638648123,-500.0,0.00019178,2]
[338437736,1726638648133,-518.37211877,0.00019178,2]
[338437737,1726638648142,-3343.52,0.00019178,2]
[338437738,1726638648152,-500.0,0.00019178,2]
[338437739,1726638648161,-500.0,0.00019178,2]
[338437740,1726638648171,-500.0,0.00019178,2]
[338437741,1726638648180,-500.0,0.00019178,2]
[338437742,1726638648190,-500.0,0.00019178,2]
[338437743,1726638648200,-151.0,0.00019178,2]
[338437744,1726638648209,-151.0,0.00019178,2]
[338437745,1726638648219,-500.0,0.00019178,2]
[338437746,1726638648229,-1792.34,0.00019178,2]
[338437747,1726638648239,-264.603723,0.00019178,2]
[338437748,1726638648443,-1246.83,0.00019178,2]
[338437749,1726638648453,-500.0,0.00019178,2]
[338437750,1726638648464,-4696.72,0.00019178,2]
[338437751,1726638648473,-577.05,0.00019178,2]
[338437752,1726638648483,-913.36,0.00019178,2]
[338437753,1726638648496,-802.98,0.00019178,2]
[338437754,1726638648505,-500.0,0.00019178,2]
[338437755,1726638648516,-500.0,0.00019178,2]
[338437756,1726638648526,-611.94,0.00019178,2]
[338437757,1726638648536,-973.49,0.00019178,2]
[338437758,1726638648546,-500.0,0.00019178,2]
[338437759,1726638648557,-2102.95,0.00019178,2]
[338437760,1726638648568,-500.0,0.00019178,2]
[338437761,1726638648578,-12411.55,0.00019178,2]
[338437762,1726638648588,-500.0,0.00019178,2]
[338437763,1726638648598,-500.0,0.00019178,2]
[338437764,1726638648608,-500.0,0.00019178,2]
[338437765,1726638648617,-500.0,0.00019178,2]
[338437766,1726638648627,-1823.48,0.00019178,2]
[338437767,1726638648638,-857.26,0.00019178,2]
[338437768,1726638648648,-10405.41,0.00019178,2]
[338437769,1726638648659,-3428.87,0.00019178,2]
[338437770,1726638648668,-500.0,0.00019178,2]
[338437771,1726638648679,-500.0,0.00019178,2]
[338437772,1726638648688,-2200.47,0.00019178,2]
[338437773,1726638648698,-500.0,0.00019178,2]
[338437774,1726638648708,-4417.11,0.00019178,2]
[338437775,1726638648717,-1168.88,0.00019178,2]
[338437776,1726638648726,-2112.33,0.00019178,2]
[338437777,1726638648736,-2112.33,0.00019178,2]
[338437778,1726638648745,-500.0,0.00019178,2]
[338437779,1726638648755,-1516.06,0.00019178,2]
[338437780,1726638648766,-566.01,0.00019178,2]
[338437781,1726638648779,-500.0,0.00019178,2]
[338437782,1726638648788,-1579.02,0.00019178,2]
[338437783,1726638648797,-2266.95,0.00019178,2]
[338437784,1726638648806,-957.76,0.00019178,2]
[338437785,1726638648817,-2112.33,0.00019178,2]
[338437786,1726638648826,-2112.33,0.00019178,2]
[338437787,1726638648836,-2112.33,0.00019178,2]
[338437788,1726638648846,-2112.33,0.00019178,2]
[338437789,1726638648856,-2112.33,0.00019178,2]
[338437790,1726638648865,-2112.33,0.00019178,2]
[338437791,1726638648874,-500.0,0.00019178,2]
[338437792,1726638648884,-2112.33,0.00019178,2]
[338437793,1726638648894,-2112.33,0.00019178,2]
[338437794,1726638648903,-2112.33,0.00019178,2]
[338437795,1726638648913,-2112.33,0.00019178,2]
[338437796,1726638648922,-500.0,0.00019178,2]
[338437797,1726638648935,-2112.33,0.00019178,2]
[338437798,1726638648944,-523.06,0.00019178,2]
[338437799,1726638648954,-2112.33,0.00019178,2]
[338437800,1726638648963,-500.0,0.00019178,2]
[338437801,1726638648973,-2112.33,0.00019178,2]